Workbook

Sheet Sheet1
B1: Visualizing the Quotient Rule
B3: This DIGMath program helps you visualize
B4: the Quotient Rule for finding the derivative
B5: of the quotient f(x)/g(x) of two functions:
C6: y = f(x) and y = g(x)
B7: on any interval from x = a to x = b.
A10: Enter the first function in terms of x: y = f(x) = | F10: sin(3*x)
A12: Enter the second function in terms of x: y = g(x) = | F12: x^3
I14: Now trace along the various curves:
A15: Now enter the interval for x : | I15: x = | J15: =D16+K15*Sheet2!B12 -> 1.331736527 | K15: 315
B16: Starting value a = | D16: 0.2 | I16: f(x) = | J16: =LOOKUP(J15,Sheet2!C3:C504,Sheet2!D3:D504) -> -0.7465347003 | L16: slope of f(x) = | M16: =LOOKUP(x0,Sheet2!C3:C504,Sheet2!E3:E504) -> -1.983931192
B17: Ending value b = | D17: 2 | I17: g(x) = | J17: =LOOKUP(J15,Sheet2!C$3:C$504,Sheet2!F$3:F$504) -> 2.342799982 | L17: slope of g(x) = | M17: =LOOKUP(x0,Sheet2!C3:C504,Sheet2!G3:G504) -> 5.306225394
I18: f(x)/g(x) = | J18: =LOOKUP(x0,Sheet2!C$3:C$504,Sheet2!H$3:H$504) -> -0.3186506343 | L18: slope of quotient f/g is | M18: =LOOKUP(x0,Sheet2!C3:C504,Sheet2!I3:I504) -> -0.12
I20: f'(x)/g'(x) = | J20: =LOOKUP(x0,Sheet2!C$3:C$504,Sheet2!J$3:J$504) -> -0.37 | L20: [f '(x)g(x) - f(x)g'(x)]/g2(x) = | M20: =LOOKUP(x0,Sheet2!C$3:C$504,Sheet2!K$3:K$504) -> 0.1251063289
A22: Click each item below for suggestions and investigations
C23: Item 1
C24: Item 2
C25: Item 3
C26: Item 4
A30: To access/download all the DIGMath Apps for Calculus
A31: Click this link: | C31: DIGMath for Calculus
A33: Created by: Sheldon P. Gordon
A34: Farmingdale State College
A35: Development of this module was supported by the
A36: NSF's Division of Undergraduate Education
A37: under grants DUE-0310123 and DUE-0442160.

Sheet Sheet2
C1: x | D1: y = f(x) | E1: f'(x) | F1: y = g(x) | G1: g'(x) | H1: f/g | I1: slope of f /g | J1: f' / g' | K1: (fg' - f'g)/g^2 | M1: Tracing points | S1: Quotient
M2: =x0 -> 1.331736527 | N2: =Sheet1!J16 -> -0.7465347003 | P2: =x0 -> 1.331736527 | Q2: =Sheet1!J17 -> 2.342799982 | S2: =x0 -> 1.331736527 | T2: =Sheet1!J18 -> -0.3186506343
C3: =a -> 0.2000 | D3: =SIN(3*x) -> 0.5646 | E3: =(D4-D3)/dx -> 2.4668 | F3: =x^3 -> 0.0080 | G3: =(F4-F3)/dx -> 0.1222 | H3: =IF(F3=0,"",D3/F3) -> 70.5803 | I3: =(H4-H3)/dx -> -729.4607 | J3: =IF(G3=0,"",E3/G3) -> 20.1920 | K3: =IF(F3=0,"",(D3*G3-F3*E3)/F3^2) -> 769.4834 | M3: =M2+40*dx -> 1.475449102 | N3: =N2+40*dx*LOOKUP(x0,C3:C504,E3:E504) -> -1.03165056 | P3: =P2+40*dx -> 1.475449102 | Q3: =Q2+40*dx*LOOKUP(x0,C3:C504,G3:G504) -> 3.105371296 | S3: =S2+40*dx -> 1.475449102 | T3: =T2+40*dx*LOOKUP(x0,C3:C504,I3:I504) -> -0.3364848628
C4: =C3+B$12 -> 0.2036 | D4: 0.5735 | E4: 2.4483 | F4: 0.0084 | G4: 0.1266 | H4: =IF(F4=0,"",D4/F4) -> 67.9595 | I4: -691.7867 | J4: =IF(G4=0,"",E4/G4) -> 19.3453 | K4: =IF(F4=0,"",(D4*G4-F4*E4)/F4^2) -> 729.0608
C5: =C4+B$12 -> 0.2072 | D5: 0.5823 | E5: 2.4295 | F5: 0.0089 | G5: 0.1310 | H5: =IF(F5=0,"",D5/F5) -> 65.4740 | I5: -656.6585 | J5: 18.5421 | K5: 691.4157 | M5: Tan to f'/g'
C6: 0.2108 | D6: 0.5910 | E6: 2.4103 | F6: 0.0094 | G6: 0.1356 | H6: 63.1148 | I6: -623.8644 | J6: 17.7797 | K6: 656.3135 | M6: =x0 -> 1.331736527 | N6: =LOOKUP(x0,C3:C503,J3:J503) -> -0.3738874709
C7: 0.2144 | D7: 0.5997 | E7: 2.3910 | F7: 0.0099 | G7: 0.1402 | H7: 60.8734 | I7: -593.2138 | J7: 17.0553 | K7: 623.5429 | M7: =M6+40*dx -> 1.475449102 | N7: =N6+40*dx*LOOKUP(x0,C3:C503,J3:J503) -> -0.4276198021
C8: 0.2180 | D8: 0.6083 | E8: 2.3713 | F8: 0.0104 | G8: 0.1449 | H8: 58.7420 | I8: -564.5344 | J8: 16.3664 | K8: 592.9136
C9: 0.2216 | D9: 0.6168 | E9: 2.3513 | F9: 0.0109 | G9: 0.1497 | H9: 56.7138 | I9: -537.6699 | J9: 15.7109 | K9: 564.2533
C10: 0.2251 | D10: 0.6252 | E10: 2.3311 | F10: 0.0114 | G10: 0.1545 | H10: 54.7820 | I10: -512.4792 | J10: 15.0865 | K10: 537.4064 | M10: Tangent to (f'g-fg')/g^2
C11: 0.2287 | D11: 0.6336 | E11: 2.3106 | F11: 0.0120 | G11: 0.1594 | H11: 52.9408 | I11: -488.8337 | J11: 14.4915 | K11: 512.2315 | M11: =x0 -> 1.331736527 | N11: =LOOKUP(x0,C3:C503,K3:K503) -> 0.1251063289
A12: delta x = | B12: =(Sheet1!D17-Sheet1!D16)/501 -> 0.003592814371 | C12: 0.2323 | D12: 0.6419 | E12: 2.2899 | F12: 0.0125 | G12: 0.1645 | H12: 51.1845 | I12: -466.6168 | J12: 13.9239 | K12: 488.6004 | M12: =M11+40*dx -> 1.475449102 | N12: =N11+40*dx*LOOKUP(x0,C3:C503,I3:I503) -> 0.1072721004
C13: 0.2359 | D13: 0.6502 | E13: 2.2689 | F13: 0.0131 | G13: 0.1695 | H13: 49.5080 | I13: -445.7220 | J13: 13.3823 | K13: 466.3966
C14: 0.2395 | D14: 0.6583 | E14: 2.2476 | F14: 0.0137 | G14: 0.1747 | H14: 47.9066 | I14: -426.0525 | J14: 12.8649 | K14: 445.5139
C15: 0.2431 | D15: 0.6664 | E15: 2.2260 | F15: 0.0144 | G15: 0.1799 | H15: 46.3759 | I15: -407.5196 | J15: 12.3705 | K15: 425.8553
C16: 0.2467 | D16: 0.6744 | E16: 2.2042 | F16: 0.0150 | G16: 0.1853 | H16: 44.9118 | I16: -390.0424 | J16: 11.8977 | K16: 407.3325
C17: 0.2503 | D17: 0.6823 | E17: 2.1822 | F17: 0.0157 | G17: 0.1907 | H17: 43.5104 | I17: -373.5467 | J17: 11.4453 | K17: 389.8645
C18: 0.2539 | D18: 0.6901 | E18: 2.1598 | F18: 0.0164 | G18: 0.1961 | H18: 42.1683 | I18: -357.9646 | J18: 11.0121 | K18: 373.3772
C19: 0.2575 | D19: 0.6979 | E19: 2.1373 | F19: 0.0171 | G19: 0.2017 | H19: 40.8822 | I19: -343.2335 | J19: 10.5971 | K19: 357.8029
C20: 0.2611 | D20: 0.7056 | E20: 2.1145 | F20: 0.0178 | G20: 0.2073 | H20: 39.6491 | I20: -329.2962 | J20: 10.1994 | K20: 343.0790
C21: 0.2647 | D21: 0.7132 | E21: 2.0914 | F21: 0.0185 | G21: 0.2130 | H21: 38.4660 | I21: -316.0999 | J21: 9.8180 | K21: 329.1482
C22: 0.2683 | D22: 0.7207 | E22: 2.0681 | F22: 0.0193 | G22: 0.2188 | H22: 37.3303 | I22: -303.5958 | J22: 9.4520 | K22: 315.9579
C23: 0.2719 | D23: 0.7281 | E23: 2.0446 | F23: 0.0201 | G23: 0.2247 | H23: 36.2395 | I23: -291.7392 | J23: 9.1006 | K23: 303.4595
C24: 0.2754 | D24: 0.7355 | E24: 2.0208 | F24: 0.0209 | G24: 0.2306 | H24: 35.1913 | I24: -280.4887 | J24: 8.7632 | K24: 291.6081
C25: 0.2790 | D25: 0.7427 | E25: 1.9968 | F25: 0.0217 | G25: 0.2366 | H25: 34.1836 | I25: -269.8059 | J25: 8.4389 | K25: 280.3623
C26: 0.2826 | D26: 0.7499 | E26: 1.9725 | F26: 0.0226 | G26: 0.2427 | H26: 33.2142 | I26: -259.6555 | J26: 8.1271 | K26: 269.6840
C27: 0.2862 | D27: 0.7570 | E27: 1.9480 | F27: 0.0234 | G27: 0.2489 | H27: 32.2813 | I27: -250.0047 | J27: 7.8273 | K27: 259.5378
C28: 0.2898 | D28: 0.7640 | E28: 1.9233 | F28: 0.0243 | G28: 0.2551 | H28: 31.3831 | I28: -240.8231 | J28: 7.5388 | K28: 249.8908
C29: 0.2934 | D29: 0.7709 | E29: 1.8984 | F29: 0.0253 | G29: 0.2614 | H29: 30.5179 | I29: -232.0824 | J29: 7.2611 | K29: 240.7127
C30: 0.2970 | D30: 0.7777 | E30: 1.8733 | F30: 0.0262 | G30: 0.2679 | H30: 29.6841 | I30: -223.7566 | J30: 6.9936 | K30: 231.9754
C31: 0.3006 | D31: 0.7844 | E31: 1.8479 | F31: 0.0272 | G31: 0.2743 | H31: 28.8801 | I31: -215.8212 | J31: 6.7360 | K31: 223.6527
C32: 0.3042 | D32: 0.7911 | E32: 1.8223 | F32: 0.0281 | G32: 0.2809 | H32: 28.1047 | I32: -208.2536 | J32: 6.4876 | K32: 215.7202
C33: 0.3078 | D33: 0.7976 | E33: 1.7965 | F33: 0.0292 | G33: 0.2875 | H33: 27.3565 | I33: -201.0327 | J33: 6.2482 | K33: 208.1553
C34: 0.3114 | D34: 0.8041 | E34: 1.7705 | F34: 0.0302 | G34: 0.2942 | H34: 26.6342 | I34: -194.1388 | J34: 6.0173 | K34: 200.9369
C35: 0.3150 | D35: 0.8104 | E35: 1.7443 | F35: 0.0312 | G35: 0.3010 | H35: 25.9367 | I35: -187.5537 | J35: 5.7945 | K35: 194.0454
C36: 0.3186 | D36: 0.8167 | E36: 1.7179 | F36: 0.0323 | G36: 0.3079 | H36: 25.2629 | I36: -181.2601 | J36: 5.5795 | K36: 187.4624
C37: 0.3222 | D37: 0.8229 | E37: 1.6913 | F37: 0.0334 | G37: 0.3148 | H37: 24.6117 | I37: -175.2421 | J37: 5.3719 | K37: 181.1709
C38: 0.3257 | D38: 0.8290 | E38: 1.6645 | F38: 0.0346 | G38: 0.3219 | H38: 23.9820 | I38: -169.4848 | J38: 5.1715 | K38: 175.1549
C39: 0.3293 | D39: 0.8349 | E39: 1.6375 | F39: 0.0357 | G39: 0.3290 | H39: 23.3731 | I39: -163.9742 | J39: 4.9778 | K39: 169.3994
C40: 0.3329 | D40: 0.8408 | E40: 1.6103 | F40: 0.0369 | G40: 0.3361 | H40: 22.7840 | I40: -158.6971 | J40: 4.7906 | K40: 163.8905
C41: 0.3365 | D41: 0.8466 | E41: 1.5829 | F41: 0.0381 | G41: 0.3434 | H41: 22.2138 | I41: -153.6414 | J41: 4.6097 | K41: 158.6150
C42: 0.3401 | D42: 0.8523 | E42: 1.5554 | F42: 0.0393 | G42: 0.3507 | H42: 21.6618 | I42: -148.7954 | J42: 4.4347 | K42: 153.5608
C43: 0.3437 | D43: 0.8579 | E43: 1.5276 | F43: 0.0406 | G43: 0.3581 | H43: 21.1272 | I43: -144.1485 | J43: 4.2655 | K43: 148.7162
C44: 0.3473 | D44: 0.8634 | E44: 1.4997 | F44: 0.0419 | G44: 0.3656 | H44: 20.6093 | I44: -139.6904 | J44: 4.1018 | K44: 144.0707
C45: 0.3509 | D45: 0.8688 | E45: 1.4716 | F45: 0.0432 | G45: 0.3732 | H45: 20.1074 | I45: -135.4117 | J45: 3.9434 | K45: 139.6139
C46: 0.3545 | D46: 0.8740 | E46: 1.4434 | F46: 0.0445 | G46: 0.3808 | H46: 19.6209 | I46: -131.3034 | J46: 3.7901 | K46: 135.3364
C47: 0.3581 | D47: 0.8792 | E47: 1.4149 | F47: 0.0459 | G47: 0.3885 | H47: 19.1492 | I47: -127.3571 | J47: 3.6416 | K47: 131.2292
C48: 0.3617 | D48: 0.8843 | E48: 1.3863 | F48: 0.0473 | G48: 0.3963 | H48: 18.6916 | I48: -123.5649 | J48: 3.4978 | K48: 127.2840
C49: 0.3653 | D49: 0.8893 | E49: 1.3576 | F49: 0.0487 | G49: 0.4042 | H49: 18.2477 | I49: -119.9192 | J49: 3.3586 | K49: 123.4927
C50: 0.3689 | D50: 0.8942 | E50: 1.3287 | F50: 0.0502 | G50: 0.4122 | H50: 17.8168 | I50: -116.4131 | J50: 3.2236 | K50: 119.8481
C51: 0.3725 | D51: 0.8989 | E51: 1.2996 | F51: 0.0517 | G51: 0.4202 | H51: 17.3986 | I51: -113.0400 | J51: 3.0928 | K51: 116.3429
C52: 0.3760 | D52: 0.9036 | E52: 1.2704 | F52: 0.0532 | G52: 0.4283 | H52: 16.9924 | I52: -109.7935 | J52: 2.9661 | K52: 112.9706
C53: 0.3796 | D53: 0.9082 | E53: 1.2410 | F53: 0.0547 | G53: 0.4365 | H53: 16.5980 | I53: -106.6678 | J53: 2.8432 | K53: 109.7250
C54: 0.3832 | D54: 0.9126 | E54: 1.2115 | F54: 0.0563 | G54: 0.4447 | H54: 16.2147 | I54: -103.6573 | J54: 2.7240 | K54: 106.6001
C55: 0.3868 | D55: 0.9170 | E55: 1.1819 | F55: 0.0579 | G55: 0.4531 | H55: 15.8423 | I55: -100.7567 | J55: 2.6084 | K55: 103.5903
C56: 0.3904 | D56: 0.9212 | E56: 1.1521 | F56: 0.0595 | G56: 0.4615 | H56: 15.4803 | I56: -97.9610 | J56: 2.4963 | K56: 100.6904
C57: 0.3940 | D57: 0.9254 | E57: 1.1221 | F57: 0.0612 | G57: 0.4700 | H57: 15.1284 | I57: -95.2656 | J57: 2.3876 | K57: 97.8955
C58: 0.3976 | D58: 0.9294 | E58: 1.0921 | F58: 0.0629 | G58: 0.4786 | H58: 14.7861 | I58: -92.6659 | J58: 2.2820 | K58: 95.2007
C59: 0.4012 | D59: 0.9333 | E59: 1.0619 | F59: 0.0646 | G59: 0.4872 | H59: 14.4532 | I59: -90.1577 | J59: 2.1795 | K59: 92.6016
C60: 0.4048 | D60: 0.9372 | E60: 1.0316 | F60: 0.0663 | G60: 0.4959 | H60: 14.1292 | I60: -87.7370 | J60: 2.0801 | K60: 90.0940
C61: 0.4084 | D61: 0.9409 | E61: 1.0012 | F61: 0.0681 | G61: 0.5047 | H61: 13.8140 | I61: -85.4000 | J61: 1.9835 | K61: 87.6739
C62: 0.4120 | D62: 0.9445 | E62: 0.9706 | F62: 0.0699 | G62: 0.5136 | H62: 13.5072 | I62: -83.1432 | J62: 1.8898 | K62: 85.3375
C63: 0.4156 | D63: 0.9479 | E63: 0.9400 | F63: 0.0718 | G63: 0.5226 | H63: 13.2085 | I63: -80.9631 | J63: 1.7987 | K63: 83.0812
C64: 0.4192 | D64: 0.9513 | E64: 0.9092 | F64: 0.0736 | G64: 0.5316 | H64: 12.9176 | I64: -78.8564 | J64: 1.7103 | K64: 80.9016
C65: 0.4228 | D65: 0.9546 | E65: 0.8784 | F65: 0.0756 | G65: 0.5407 | H65: 12.6343 | I65: -76.8201 | J65: 1.6244 | K65: 78.7954
C66: 0.4263 | D66: 0.9577 | E66: 0.8474 | F66: 0.0775 | G66: 0.5499 | H66: 12.3583 | I66: -74.8512 | J66: 1.5409 | K66: 76.7595
C67: 0.4299 | D67: =SIN(3*x) -> 0.9608 | E67: =(D68-D67)/dx -> 0.8163 | F67: =x^3 -> 0.0795 | G67: =(F68-F67)/dx -> 0.5592 | H67: 12.0893 | I67: =(H68-H67)/dx -> -72.9471 | J67: 1.4598 | K67: 74.7911
C68: 0.4335 | D68: 0.9637 | E68: 0.7852 | F68: 0.0815 | G68: 0.5685 | H68: 11.8272 | I68: -71.1049 | J68: =IF(G68=0,"",E68/G68) -> 1.3810 | K68: =IF(F68=0,"",(D68*G68-F68*E68)/F68^2) -> 72.8874
C69: =C68+B$12 -> 0.4371 | D69: 0.9665 | E69: 0.7539 | F69: 0.0835 | G69: 0.5780 | H69: =IF(F69=0,"",D69/F69) -> 11.5718 | I69: -69.3223 | J69: 1.3044 | K69: 71.0457
C70: 0.4407 | D70: 0.9692 | E70: 0.7226 | F70: 0.0856 | G70: 0.5875 | H70: 11.3227 | I70: -67.5967 | J70: 1.2300 | K70: 69.2634
C71: 0.4443 | D71: 0.9718 | E71: 0.6912 | F71: 0.0877 | G71: 0.5970 | H71: 11.0799 | I71: -65.9261 | J71: 1.1576 | K71: 67.5383
C72: 0.4479 | D72: 0.9743 | E72: 0.6596 | F72: 0.0899 | G72: 0.6067 | H72: 10.8430 | I72: -64.3080 | J72: 1.0873 | K72: 65.8680
C73: 0.4515 | D73: 0.9767 | E73: 0.6281 | F73: 0.0920 | G73: 0.6164 | H73: 10.6120 | I73: -62.7406 | J73: 1.0189 | K73: 64.2504
C74: 0.4551 | D74: 0.9790 | E74: 0.5964 | F74: 0.0943 | G74: 0.6262 | H74: 10.3865 | I74: -61.2218 | J74: 0.9524 | K74: 62.6833
C75: 0.4587 | D75: 0.9811 | E75: 0.5647 | F75: 0.0965 | G75: 0.6361 | H75: 10.1666 | I75: -59.7498 | J75: 0.8877 | K75: 61.1649
C76: 0.4623 | D76: 0.9831 | E76: 0.5329 | F76: 0.0988 | G76: 0.6461 | H76: 9.9519 | I76: -58.3227 | J76: 0.8248 | K76: 59.6932
C77: 0.4659 | D77: 0.9850 | E77: 0.5010 | F77: 0.1011 | G77: 0.6561 | H77: 9.7424 | I77: -56.9389 | J77: 0.7636 | K77: 58.2664
C78: 0.4695 | D78: 0.9868 | E78: 0.4691 | F78: 0.1035 | G78: 0.6663 | H78: 9.5378 | I78: -55.5966 | J78: 0.7041 | K78: 56.8829
C79: 0.4731 | D79: 0.9885 | E79: 0.4372 | F79: 0.1059 | G79: 0.6765 | H79: 9.3380 | I79: -54.2944 | J79: 0.6463 | K79: 55.5410
C80: 0.4766 | D80: 0.9901 | E80: 0.4052 | F80: 0.1083 | G80: 0.6867 | H80: 9.1430 | I80: -53.0308 | J80: 0.5900 | K80: 54.2391
C81: 0.4802 | D81: 0.9916 | E81: 0.3731 | F81: 0.1108 | G81: 0.6971 | H81: 8.9524 | I81: -51.8043 | J81: 0.5352 | K81: 52.9757
C82: 0.4838 | D82: 0.9929 | E82: 0.3410 | F82: 0.1133 | G82: 0.7075 | H82: 8.7663 | I82: -50.6136 | J82: 0.4820 | K82: 51.7495
C83: 0.4874 | D83: 0.9941 | E83: 0.3088 | F83: 0.1158 | G83: 0.7180 | H83: 8.5845 | I83: -49.4574 | J83: 0.4301 | K83: 50.5591
C84: 0.4910 | D84: 0.9952 | E84: 0.2767 | F84: 0.1184 | G84: 0.7286 | H84: 8.4068 | I84: -48.3344 | J84: 0.3797 | K84: 49.4031
C85: 0.4946 | D85: 0.9962 | E85: 0.2445 | F85: 0.1210 | G85: 0.7393 | H85: 8.2331 | I85: -47.2434 | J85: 0.3307 | K85: 48.2804
C86: 0.4982 | D86: 0.9971 | E86: 0.2122 | F86: 0.1237 | G86: 0.7500 | H86: 8.0634 | I86: -46.1833 | J86: 0.2829 | K86: 47.1897
C87: 0.5018 | D87: 0.9979 | E87: 0.1799 | F87: 0.1264 | G87: 0.7608 | H87: 7.8975 | I87: -45.1530 | J87: 0.2365 | K87: 46.1299
C88: 0.5054 | D88: 0.9985 | E88: 0.1477 | F88: 0.1291 | G88: 0.7717 | H88: 7.7352 | I88: -44.1515 | J88: 0.1913 | K88: 45.0998
C89: 0.5090 | D89: 0.9990 | E89: 0.1154 | F89: 0.1319 | G89: 0.7827 | H89: 7.5766 | I89: -43.1777 | J89: 0.1474 | K89: 44.0986
C90: 0.5126 | D90: 0.9995 | E90: 0.0830 | F90: 0.1347 | G90: 0.7937 | H90: 7.4215 | I90: -42.2308 | J90: 0.1046 | K90: 43.1251
C91: 0.5162 | D91: 0.9998 | E91: 0.0507 | F91: 0.1375 | G91: 0.8049 | H91: 7.2698 | I91: -41.3097 | J91: 0.0630 | K91: 42.1783
C92: 0.5198 | D92: 0.9999 | E92: 0.0184 | F92: 0.1404 | G92: 0.8161 | H92: 7.1213 | I92: -40.4136 | J92: 0.0225 | K92: 41.2575
C93: 0.5234 | D93: 1.0000 | E93: -0.0140 | F93: 0.1433 | G93: 0.8273 | H93: 6.9761 | I93: -39.5416 | J93: -0.0169 | K93: 40.3616
C94: 0.5269 | D94: 0.9999 | E94: -0.0463 | F94: 0.1463 | G94: 0.8387 | H94: 6.8341 | I94: -38.6930 | J94: -0.0552 | K94: 39.4899
C95: 0.5305 | D95: 0.9998 | E95: -0.0786 | F95: 0.1493 | G95: 0.8501 | H95: 6.6951 | I95: -37.8669 | J95: -0.0925 | K95: 38.6415
C96: 0.5341 | D96: 0.9995 | E96: -0.1109 | F96: 0.1524 | G96: 0.8617 | H96: 6.5590 | I96: -37.0627 | J96: -0.1287 | K96: 37.8156
C97: 0.5377 | D97: 0.9991 | E97: -0.1432 | F97: 0.1555 | G97: 0.8733 | H97: 6.4258 | I97: -36.2795 | J97: -0.1640 | K97: 37.0116
C98: 0.5413 | D98: 0.9986 | E98: -0.1755 | F98: 0.1586 | G98: 0.8849 | H98: 6.2955 | I98: -35.5167 | J98: -0.1984 | K98: 36.2286
C99: 0.5449 | D99: 0.9980 | E99: -0.2078 | F99: 0.1618 | G99: 0.8967 | H99: 6.1679 | I99: -34.7737 | J99: -0.2318 | K99: 35.4660
C100: 0.5485 | D100: 0.9972 | E100: -0.2400 | F100: 0.1650 | G100: 0.9085 | H100: 6.0430 | I100: -34.0497 | J100: -0.2642 | K100: 34.7232
C101: 0.5521 | D101: 0.9963 | E101: -0.2723 | F101: 0.1683 | G101: 0.9204 | H101: 5.9206 | I101: -33.3442 | J101: -0.2958 | K101: 33.9994
C102: 0.5557 | D102: 0.9954 | E102: -0.3044 | F102: 0.1716 | G102: 0.9324 | H102: 5.8008 | I102: -32.6566 | J102: -0.3265 | K102: 33.2942
C103: 0.5593 | D103: 0.9943 | E103: -0.3366 | F103: 0.1749 | G103: 0.9444 | H103: 5.6835 | I103: -31.9864 | J103: -0.3564 | K103: 32.6068
C104: 0.5629 | D104: 0.9931 | E104: -0.3687 | F104: 0.1783 | G104: 0.9566 | H104: 5.5686 | I104: -31.3329 | J104: -0.3855 | K104: 31.9367
C105: 0.5665 | D105: 0.9917 | E105: -0.4008 | F105: 0.1818 | G105: 0.9688 | H105: 5.4560 | I105: -30.6956 | J105: -0.4137 | K105: 31.2834
C106: 0.5701 | D106: 0.9903 | E106: -0.4328 | F106: 0.1853 | G106: 0.9811 | H106: 5.3457 | I106: -30.0742 | J106: -0.4412 | K106: 30.6464
C107: 0.5737 | D107: 0.9887 | E107: -0.4648 | F107: 0.1888 | G107: 0.9934 | H107: 5.2377 | I107: -29.4679 | J107: -0.4678 | K107: 30.0251
C108: 0.5772 | D108: 0.9871 | E108: -0.4967 | F108: 0.1923 | G108: 1.0059 | H108: 5.1318 | I108: -28.8765 | J108: -0.4938 | K108: 29.4190
C109: 0.5808 | D109: 0.9853 | E109: -0.5285 | F109: 0.1960 | G109: 1.0184 | H109: 5.0280 | I109: -28.2994 | J109: -0.5190 | K109: 28.8278
C110: 0.5844 | D110: 0.9834 | E110: -0.5603 | F110: 0.1996 | G110: 1.0310 | H110: 4.9264 | I110: -27.7362 | J110: -0.5435 | K110: 28.2509
C111: 0.5880 | D111: 0.9814 | E111: -0.5921 | F111: 0.2033 | G111: 1.0437 | H111: 4.8267 | I111: -27.1865 | J111: -0.5673 | K111: 27.6879
C112: 0.5916 | D112: 0.9793 | E112: -0.6237 | F112: 0.2071 | G112: 1.0564 | H112: 4.7290 | I112: -26.6499 | J112: -0.5904 | K112: 27.1384
C113: 0.5952 | D113: 0.9770 | E113: -0.6553 | F113: 0.2109 | G113: 1.0693 | H113: 4.6333 | I113: -26.1260 | J113: -0.6129 | K113: 26.6020
C114: 0.5988 | D114: 0.9747 | E114: -0.6869 | F114: 0.2147 | G114: 1.0822 | H114: 4.5394 | I114: -25.6144 | J114: -0.6347 | K114: 26.0783
C115: 0.6024 | D115: 0.9722 | E115: -0.7183 | F115: 0.2186 | G115: 1.0951 | H115: 4.4474 | I115: -25.1148 | J115: -0.6559 | K115: 25.5669
C116: 0.6060 | D116: 0.9696 | E116: -0.7496 | F116: 0.2225 | G116: 1.1082 | H116: 4.3572 | I116: -24.6268 | J116: -0.6764 | K116: 25.0674
C117: 0.6096 | D117: 0.9669 | E117: -0.7809 | F117: 0.2265 | G117: 1.1213 | H117: 4.2687 | I117: -24.1500 | J117: -0.6964 | K117: 24.5796
C118: 0.6132 | D118: 0.9641 | E118: -0.8121 | F118: 0.2305 | G118: 1.1346 | H118: 4.1819 | I118: -23.6842 | J118: -0.7158 | K118: 24.1030
C119: 0.6168 | D119: 0.9612 | E119: -0.8432 | F119: 0.2346 | G119: 1.1479 | H119: 4.0968 | I119: -23.2290 | J119: -0.7345 | K119: 23.6374
C120: 0.6204 | D120: 0.9582 | E120: -0.8741 | F120: 0.2387 | G120: 1.1612 | H120: 4.0134 | I120: -22.7842 | J120: -0.7528 | K120: 23.1824
C121: 0.6240 | D121: 0.9550 | E121: -0.9050 | F121: 0.2429 | G121: 1.1747 | H121: 3.9315 | I121: -22.3494 | J121: -0.7704 | K121: 22.7377
C122: 0.6275 | D122: 0.9518 | E122: -0.9358 | F122: 0.2471 | G122: 1.1882 | H122: 3.8512 | I122: -21.9243 | J122: -0.7876 | K122: 22.3031
C123: 0.6311 | D123: 0.9484 | E123: -0.9665 | F123: 0.2514 | G123: 1.2018 | H123: 3.7724 | I123: -21.5088 | J123: -0.8042 | K123: 21.8782
C124: 0.6347 | D124: 0.9449 | E124: -0.9970 | F124: 0.2557 | G124: 1.2155 | H124: 3.6952 | I124: -21.1024 | J124: -0.8203 | K124: 21.4628
C125: 0.6383 | D125: 0.9414 | E125: -1.0275 | F125: 0.2601 | G125: 1.2293 | H125: 3.6194 | I125: -20.7050 | J125: -0.8358 | K125: 21.0566
C126: 0.6419 | D126: 0.9377 | E126: -1.0578 | F126: 0.2645 | G126: 1.2431 | H126: 3.5450 | I126: -20.3163 | J126: -0.8509 | K126: 20.6594
C127: 0.6455 | D127: 0.9339 | E127: -1.0880 | F127: 0.2690 | G127: 1.2570 | H127: 3.4720 | I127: -19.9361 | J127: -0.8655 | K127: 20.2709
C128: 0.6491 | D128: 0.9300 | E128: -1.1180 | F128: 0.2735 | G128: 1.2710 | H128: 3.4003 | I128: -19.5642 | J128: -0.8796 | K128: 19.8908
C129: 0.6527 | D129: 0.9259 | E129: -1.1480 | F129: 0.2781 | G129: 1.2851 | H129: 3.3301 | I129: -19.2002 | J129: -0.8933 | K129: 19.5191
C130: 0.6563 | D130: 0.9218 | E130: -1.1778 | F130: 0.2827 | G130: 1.2992 | H130: 3.2611 | I130: -18.8441 | J130: -0.9065 | K130: 19.1553
C131: 0.6599 | D131: =SIN(3*x) -> 0.9176 | E131: =(D132-D131)/dx -> -1.2075 | F131: =x^3 -> 0.2873 | G131: =(F132-F131)/dx -> 1.3135 | H131: 3.1934 | I131: =(H132-H131)/dx -> -18.4956 | J131: -0.9193 | K131: 18.7993
C132: 0.6635 | D132: 0.9132 | E132: -1.2370 | F132: 0.2921 | G132: 1.3278 | H132: 3.1269 | I132: -18.1544 | J132: =IF(G132=0,"",E132/G132) -> -0.9316 | K132: =IF(F132=0,"",(D132*G132-F132*E132)/F132^2) -> 18.4510
C133: =C132+B$12 -> 0.6671 | D133: 0.9088 | E133: -1.2664 | F133: 0.2968 | G133: 1.3421 | H133: =IF(F133=0,"",D133/F133) -> 3.0617 | I133: -17.8205 | J133: -0.9436 | K133: 18.1100
C134: 0.6707 | D134: 0.9042 | E134: -1.2956 | F134: 0.3017 | G134: 1.3566 | H134: 2.9977 | I134: -17.4936 | J134: -0.9551 | K134: 17.7762
C135: 0.6743 | D135: 0.8996 | E135: -1.3247 | F135: 0.3065 | G135: 1.3711 | H135: 2.9348 | I135: -17.1735 | J135: -0.9661 | K135: 17.4495
C136: 0.6778 | D136: 0.8948 | E136: -1.3536 | F136: 0.3115 | G136: 1.3857 | H136: 2.8731 | I136: -16.8600 | J136: -0.9768 | K136: 17.1296
C137: 0.6814 | D137: 0.8900 | E137: -1.3824 | F137: 0.3164 | G137: 1.4004 | H137: 2.8125 | I137: -16.5531 | J137: -0.9871 | K137: 16.8163
C138: 0.6850 | D138: 0.8850 | E138: -1.4110 | F138: 0.3215 | G138: 1.4152 | H138: 2.7531 | I138: -16.2524 | J138: -0.9971 | K138: 16.5095
C139: 0.6886 | D139: 0.8799 | E139: -1.4395 | F139: 0.3265 | G139: 1.4300 | H139: 2.6947 | I139: -15.9579 | J139: -1.0066 | K139: 16.2090
C140: 0.6922 | D140: 0.8748 | E140: -1.4678 | F140: 0.3317 | G140: 1.4450 | H140: 2.6373 | I140: -15.6694 | J140: -1.0158 | K140: 15.9146
C141: 0.6958 | D141: 0.8695 | E141: -1.4959 | F141: 0.3369 | G141: 1.4600 | H141: 2.5810 | I141: -15.3867 | J141: -1.0246 | K141: 15.6263
C142: 0.6994 | D142: 0.8641 | E142: -1.5238 | F142: 0.3421 | G142: 1.4750 | H142: 2.5258 | I142: -15.1097 | J142: -1.0331 | K142: 15.3438
C143: 0.7030 | D143: 0.8586 | E143: -1.5516 | F143: 0.3474 | G143: 1.4902 | H143: 2.4715 | I143: -14.8383 | J143: -1.0412 | K143: 15.0670
C144: 0.7066 | D144: 0.8531 | E144: -1.5792 | F144: 0.3528 | G144: 1.5054 | H144: 2.4182 | I144: -14.5723 | J144: -1.0490 | K144: 14.7957
C145: 0.7102 | D145: 0.8474 | E145: -1.6066 | F145: 0.3582 | G145: 1.5207 | H145: 2.3658 | I145: -14.3115 | J145: -1.0564 | K145: 14.5298
C146: 0.7138 | D146: 0.8416 | E146: -1.6338 | F146: 0.3636 | G146: 1.5361 | H146: 2.3144 | I146: -14.0559 | J146: -1.0636 | K146: 14.2693
C147: 0.7174 | D147: 0.8357 | E147: -1.6608 | F147: 0.3692 | G147: 1.5516 | H147: 2.2639 | I147: -13.8054 | J147: -1.0704 | K147: 14.0138
C148: 0.7210 | D148: 0.8298 | E148: -1.6876 | F148: 0.3747 | G148: 1.5671 | H148: 2.2143 | I148: -13.5597 | J148: -1.0769 | K148: 13.7634
C149: 0.7246 | D149: 0.8237 | E149: -1.7143 | F149: 0.3804 | G149: 1.5827 | H149: 2.1656 | I149: -13.3188 | J149: -1.0831 | K149: 13.5179
C150: 0.7281 | D150: 0.8176 | E150: -1.7407 | F150: 0.3861 | G150: 1.5984 | H150: 2.1177 | I150: -13.0826 | J150: -1.0890 | K150: 13.2772
C151: 0.7317 | D151: 0.8113 | E151: -1.7669 | F151: 0.3918 | G151: 1.6142 | H151: 2.0707 | I151: -12.8509 | J151: -1.0946 | K151: 13.0412
C152: 0.7353 | D152: 0.8050 | E152: -1.7930 | F152: 0.3976 | G152: 1.6301 | H152: 2.0245 | I152: -12.6237 | J152: -1.0999 | K152: 12.8097
C153: 0.7389 | D153: 0.7985 | E153: -1.8188 | F153: 0.4035 | G153: 1.6460 | H153: 1.9792 | I153: -12.4009 | J153: -1.1050 | K153: 12.5826
C154: 0.7425 | D154: 0.7920 | E154: -1.8444 | F154: 0.4094 | G154: 1.6620 | H154: 1.9346 | I154: -12.1822 | J154: -1.1097 | K154: 12.3599
C155: 0.7461 | D155: 0.7854 | E155: -1.8698 | F155: 0.4153 | G155: 1.6781 | H155: 1.8909 | I155: -11.9677 | J155: -1.1142 | K155: 12.1414
C156: 0.7497 | D156: 0.7786 | E156: -1.8950 | F156: 0.4214 | G156: 1.6942 | H156: 1.8479 | I156: -11.7573 | J156: -1.1185 | K156: 11.9271
C157: 0.7533 | D157: 0.7718 | E157: -1.9199 | F157: 0.4275 | G157: 1.7105 | H157: 1.8056 | I157: -11.5507 | J157: -1.1224 | K157: 11.7168
C158: 0.7569 | D158: 0.7649 | E158: -1.9447 | F158: 0.4336 | G158: 1.7268 | H158: 1.7641 | I158: -11.3481 | J158: -1.1262 | K158: 11.5105
C159: 0.7605 | D159: 0.7579 | E159: -1.9692 | F159: 0.4398 | G159: 1.7432 | H159: 1.7234 | I159: -11.1492 | J159: -1.1296 | K159: 11.3080
C160: 0.7641 | D160: 0.7509 | E160: -1.9935 | F160: 0.4461 | G160: 1.7597 | H160: 1.6833 | I160: -10.9540 | J160: -1.1329 | K160: 11.1093
C161: 0.7677 | D161: 0.7437 | E161: -2.0175 | F161: 0.4524 | G161: 1.7762 | H161: 1.6439 | I161: -10.7624 | J161: -1.1358 | K161: 10.9142
C162: 0.7713 | D162: 0.7365 | E162: -2.0413 | F162: 0.4588 | G162: 1.7928 | H162: 1.6053 | I162: -10.5743 | J162: -1.1386 | K162: 10.7228
C163: 0.7749 | D163: 0.7291 | E163: -2.0649 | F163: 0.4652 | G163: 1.8095 | H163: 1.5673 | I163: -10.3896 | J163: -1.1411 | K163: 10.5348
C164: 0.7784 | D164: 0.7217 | E164: -2.0882 | F164: 0.4717 | G164: 1.8263 | H164: 1.5300 | I164: -10.2084 | J164: -1.1434 | K164: 10.3504
C165: 0.7820 | D165: 0.7142 | E165: -2.1113 | F165: 0.4783 | G165: 1.8432 | H165: 1.4933 | I165: -10.0303 | J165: -1.1455 | K165: 10.1692
C166: 0.7856 | D166: 0.7066 | E166: -2.1342 | F166: 0.4849 | G166: 1.8601 | H166: 1.4572 | I166: -9.8555 | J166: -1.1473 | K166: 9.9914
C167: 0.7892 | D167: 0.6989 | E167: -2.1568 | F167: 0.4916 | G167: 1.8771 | H167: 1.4218 | I167: -9.6839 | J167: -1.1490 | K167: 9.8167
C168: 0.7928 | D168: 0.6912 | E168: -2.1791 | F168: 0.4983 | G168: 1.8942 | H168: 1.3870 | I168: -9.5153 | J168: -1.1504 | K168: 9.6452
C169: 0.7964 | D169: 0.6834 | E169: -2.2012 | F169: 0.5051 | G169: 1.9114 | H169: 1.3529 | I169: -9.3497 | J169: -1.1516 | K169: 9.4768
C170: 0.8000 | D170: 0.6755 | E170: -2.2231 | F170: 0.5120 | G170: 1.9286 | H170: 1.3193 | I170: -9.1871 | J170: -1.1527 | K170: 9.3114
C171: 0.8036 | D171: 0.6675 | E171: -2.2446 | F171: 0.5189 | G171: 1.9460 | H171: 1.2863 | I171: -9.0273 | J171: -1.1535 | K171: 9.1489
C172: 0.8072 | D172: 0.6594 | E172: -2.2660 | F172: 0.5259 | G172: 1.9634 | H172: 1.2538 | I172: -8.8703 | J172: -1.1541 | K172: 8.9893
C173: 0.8108 | D173: 0.6513 | E173: -2.2870 | F173: 0.5330 | G173: 1.9808 | H173: 1.2220 | I173: -8.7161 | J173: -1.1546 | K173: 8.8325
C174: 0.8144 | D174: 0.6431 | E174: -2.3078 | F174: 0.5401 | G174: 1.9984 | H174: 1.1906 | I174: -8.5646 | J174: -1.1548 | K174: 8.6785
C175: 0.8180 | D175: 0.6348 | E175: -2.3283 | F175: 0.5473 | G175: 2.0160 | H175: 1.1599 | I175: -8.4158 | J175: -1.1549 | K175: 8.5271
C176: 0.8216 | D176: 0.6264 | E176: -2.3486 | F176: 0.5545 | G176: 2.0337 | H176: 1.1296 | I176: -8.2695 | J176: -1.1548 | K176: 8.3784
C177: 0.8251 | D177: 0.6180 | E177: -2.3686 | F177: 0.5618 | G177: 2.0515 | H177: 1.0999 | I177: -8.1257 | J177: -1.1545 | K177: 8.2323
C178: 0.8287 | D178: 0.6094 | E178: -2.3883 | F178: 0.5692 | G178: 2.0694 | H178: 1.0707 | I178: -7.9844 | J178: -1.1541 | K178: 8.0887
C179: 0.8323 | D179: 0.6009 | E179: -2.4077 | F179: 0.5766 | G179: 2.0873 | H179: 1.0420 | I179: -7.8456 | J179: -1.1535 | K179: 7.9476
C180: 0.8359 | D180: 0.5922 | E180: -2.4269 | F180: 0.5841 | G180: 2.1054 | H180: 1.0139 | I180: -7.7091 | J180: -1.1527 | K180: 7.8089
C181: 0.8395 | D181: 0.5835 | E181: -2.4457 | F181: 0.5917 | G181: 2.1234 | H181: 0.9862 | I181: -7.5749 | J181: -1.1518 | K181: 7.6726
C182: 0.8431 | D182: 0.5747 | E182: -2.4643 | F182: 0.5993 | G182: 2.1416 | H182: 0.9589 | I182: -7.4430 | J182: -1.1507 | K182: 7.5385
C183: 0.8467 | D183: 0.5659 | E183: -2.4826 | F183: 0.6070 | G183: 2.1599 | H183: 0.9322 | I183: -7.3133 | J183: -1.1494 | K183: 7.4068
C184: 0.8503 | D184: 0.5569 | E184: -2.5006 | F184: 0.6148 | G184: 2.1782 | H184: 0.9059 | I184: -7.1858 | J184: -1.1480 | K184: 7.2773
C185: 0.8539 | D185: 0.5480 | E185: -2.5183 | F185: 0.6226 | G185: 2.1966 | H185: 0.8801 | I185: -7.0605 | J185: -1.1465 | K185: 7.1500
C186: 0.8575 | D186: 0.5389 | E186: -2.5358 | F186: 0.6305 | G186: 2.2151 | H186: 0.8547 | I186: -6.9372 | J186: -1.1448 | K186: 7.0248
C187: 0.8611 | D187: 0.5298 | E187: -2.5529 | F187: 0.6385 | G187: 2.2337 | H187: 0.8298 | I187: -6.8161 | J187: -1.1429 | K187: 6.9017
C188: 0.8647 | D188: 0.5206 | E188: -2.5697 | F188: 0.6465 | G188: 2.2523 | H188: 0.8053 | I188: -6.6969 | J188: -1.1409 | K188: 6.7807
C189: 0.8683 | D189: 0.5114 | E189: -2.5863 | F189: 0.6546 | G189: 2.2710 | H189: 0.7813 | I189: -6.5797 | J189: -1.1388 | K189: 6.6617
C190: 0.8719 | D190: 0.5021 | E190: -2.6025 | F190: 0.6627 | G190: 2.2898 | H190: 0.7576 | I190: -6.4644 | J190: -1.1366 | K190: 6.5446
C191: 0.8754 | D191: 0.4927 | E191: -2.6184 | F191: 0.6710 | G191: 2.3087 | H191: 0.7344 | I191: -6.3510 | J191: -1.1342 | K191: 6.4295
C192: 0.8790 | D192: 0.4833 | E192: -2.6341 | F192: 0.6792 | G192: 2.3276 | H192: 0.7116 | I192: -6.2395 | J192: -1.1316 | K192: 6.3163
C193: 0.8826 | D193: 0.4739 | E193: -2.6494 | F193: 0.6876 | G193: 2.3467 | H193: 0.6892 | I193: -6.1298 | J193: -1.1290 | K193: 6.2050
C194: 0.8862 | D194: 0.4644 | E194: -2.6644 | F194: 0.6960 | G194: 2.3658 | H194: 0.6671 | I194: -6.0219 | J194: -1.1262 | K194: 6.0955
C195: 0.8898 | D195: =SIN(3*x) -> 0.4548 | E195: =(D196-D195)/dx -> -2.6791 | F195: =x^3 -> 0.7045 | G195: =(F196-F195)/dx -> 2.3849 | H195: 0.6455 | I195: =(H196-H195)/dx -> -5.9158 | J195: -1.1233 | K195: 5.9877
C196: 0.8934 | D196: 0.4452 | E196: -2.6935 | F196: 0.7131 | G196: 2.4042 | H196: 0.6243 | I196: -5.8113 | J196: =IF(G196=0,"",E196/G196) -> -1.1203 | K196: =IF(F196=0,"",(D196*G196-F196*E196)/F196^2) -> 5.8817
C197: =C196+B$12 -> 0.8970 | D197: 0.4355 | E197: -2.7076 | F197: 0.7217 | G197: 2.4235 | H197: =IF(F197=0,"",D197/F197) -> 0.6034 | I197: -5.7086 | J197: -1.1172 | K197: 5.7775
C198: 0.9006 | D198: 0.4258 | E198: -2.7213 | F198: 0.7305 | G198: 2.4430 | H198: 0.5829 | I198: -5.6075 | J198: -1.1140 | K198: 5.6749
C199: 0.9042 | D199: 0.4160 | E199: -2.7348 | F199: 0.7392 | G199: 2.4624 | H199: 0.5627 | I199: -5.5080 | J199: -1.1106 | K199: 5.5740
C200: 0.9078 | D200: 0.4062 | E200: -2.7479 | F200: 0.7481 | G200: 2.4820 | H200: 0.5429 | I200: -5.4102 | J200: -1.1071 | K200: 5.4747
... 304 more rows

Sheet Sheet3
